[Event "Kragero Resort B 2020"]
[Site "Kragero"]
[Date "2020.02.21"]
[Round "6.4"]
[White "Skaslien, Ingrid"]
[Black "Austad, Eirik"]
[Result "0-1"]
[ECO "E94"]
[WhiteElo "1847"]
[BlackElo "1796"]
[Annotator "NA"]
[PlyCount "50"]
[EventDate "2020.02.19"]
[EventType "swiss"]
[EventCountry "NOR"]
[SourceTitle "playchess.com"]
[Source "ChessBase"]
[SourceQuality "1"]
[TimeControl "5400+30"]

1. d4 {[%emt 0:00:00]} Nf6 {[%emt 0:00:00]} 2. c4 {[%emt 0:00:00]} g6 {[%emt 0:00:20]} 3. Nc3 {[%emt 0:00:12]} Bg7 {[%emt 0:00:22]} 4. e4 {[%emt 0:01:24]} d6 {[%emt 0:00:26]} 5. Be2 {[%emt 0:00:27]} Na6 {[%emt 0:01:56]} 6. Nf3 {[%emt 0:01:09]} O-O {[%emt 0:01:09]} 7. O-O {[%emt 0:00:18]} e5 {[%emt 0:00:18]} 8. d5 {[%emt 0:01:12]} Nc5 {[%emt 0:00:07]} 9. Qc2 {[%emt 0:02:35]} a5 {[%emt 0:00:17]} 10. Rb1 {[%emt 0:01:22]} Ne8 {[%emt 0:05:23]} 11. Ne1 {[%emt 0:07:44]} f5 {[%emt 0:03:06]} 12. f3 {[%emt 0:00:32]} f4 {[%emt 0:10:48]} 13. Nd3 {[%emt 0:03:46]} h5 {[%emt 0:12:52]} 14. a3 {[%emt 0:05:38]} g5 {[%emt 0:01:59]} 15. b4 {[%emt 0:06:50]} Nxd3 {[%emt 0:11:29]} 16. Bxd3 {[%emt 0:01:20]} g4 {[%emt 0:01:36]} 17. c5 {[%emt 0:08:58]} Rf6 {[%emt 0:06:15]} 18. Kh1 {[%emt 0:05:02]} Rg6 {[%emt 0:02:02]} 19. Rg1 {[%emt 0:03:22]} g3 {[%emt 0:08:47]} 20. h3 {[%emt 0:04:13]} Qh4 {[%emt 0:00:14]} 21. Bf1 {[%emt 0:00:15]} Nf6 {[%emt 0:01:06]} 22. Nb5 {[%emt 0:10:08]} Ng4 {[%emt 0:08:41]} 23. fxg4 {[%emt 0:02:21]} hxg4 {[%emt 0:00:24]} 24. Rb2 {[%emt 0:06:36]} gxh3 {[%emt 0:02:48]} 25. Bd3 {[%emt 0:02:47]} hxg2+ {[%emt 0:00:55] Bf1 Bh3+ Rxg2 f3} 0-1

[Event "Kragero Resort B 2020"]
[Site "Kragero"]
[Date "2020.02.21"]
[Round "6.5"]
[White "Nordquelle, Amelia"]
[Black "Westrum, Kim Roger Hansen"]
[Result "0-1"]
[ECO "E97"]
[WhiteElo "1768"]
[BlackElo "1809"]
[Annotator "NA"]
[PlyCount "52"]
[EventDate "2020.02.19"]
[EventType "swiss"]
[EventCountry "NOR"]
[SourceTitle "playchess.com"]
[Source "ChessBase"]
[SourceQuality "1"]
[TimeControl "5400+30"]

1. d4 {[%emt 0:00:00]} Nf6 {[%emt 0:00:00]} 2. c4 {[%emt 0:00:50]} g6 {[%emt 0:00:02]} 3. Nc3 {[%emt 0:00:32]} Bg7 {[%emt 0:00:13]} 4. e4 {[%emt 0:01:18]} d6 {[%emt 0:00:07]} 5. Nf3 {[%emt 0:01:25]} O-O {[%emt 0:00:30]} 6. Be2 {[%emt 0:01:42]} e5 {[%emt 0:00:29]} 7. O-O {[%emt 0:01:19]} Nc6 {[%emt 0:00:09]} 8. d5 {[%emt 0:02:51]} Ne7 {[%emt 0:00:20]} 9. a3 {[%emt 0:04:40]} Ne8 {[%emt 0:01:23]} 10. b4 {[%emt 0:01:44]} f5 {[%emt 0:01:03]} 11. Bb2 {[%emt 0:05:56]} Nf6 {[%emt 0:01:48]} 12. Nd2 {[%emt 0:03:35]} f4 {[%emt 0:08:45]} 13. c5 {[%emt 0:05:39]} g5 {[%emt 0:03:35]} 14. h3 {[%emt 0:11:46]} Ng6 {[%emt 0:12:14]} 15. Rc1 {[%emt 0:09:09]} Rf7 {[%emt 0:02:52]} 16. Re1 {[%emt 0:05:20]} Bf8 {[%emt 0:04:11]} 17. Na4 {[%emt 0:09:55]} Rg7 {[%emt 0:06:51]} 18. b5 {[%emt 0:08:25]} Nh4 {[%emt 0:03:05]} 19. c6 {[%emt 0:04:29]} b6 {[%emt 0:02:01]} 20. Bg4 {[%emt 0:00:38]} Bxg4 {[%emt 0:05:41]} 21. hxg4 {[%emt 0:00:01]} h5 {[%emt 0:00:47]} 22. gxh5 {[%emt 0:00:57]} g4 {[%emt 0:00:16]} 23. g3 {[%emt 0:02:09]} Nxh5 {[%emt 0:01:20]} 24. gxh4 {[%emt 0:05:25]} Qxh4 {[%emt 0:00:09]} 25. Kg2 {[%emt 0:01:17]} f3+ {[%emt 0:01:10]} 26. Nxf3 {[%emt 0:00:09]} Qh3+ {[%emt 0:00:05]} 0-1

[Event "Kragero Resort B 2020"]
[Site "Kragero"]
[Date "2020.02.21"]
[Round "6.6"]
[White "Skogli, Paal"]
[Black "Opseth, Oliver"]
[Result "1-0"]
[ECO "A56"]
[WhiteElo "1801"]
[BlackElo "1894"]
[Annotator "NA"]
[PlyCount "63"]
[EventDate "2020.02.19"]
[EventType "swiss"]
[EventCountry "NOR"]
[SourceTitle "playchess.com"]
[Source "ChessBase"]
[SourceQuality "1"]
[TimeControl "5400+30"]

1. d4 {[%emt 0:03:45]} Nf6 {[%emt 0:00:00]} 2. c4 {[%emt 0:00:16]} c5 {[%emt 0:00:14]} 3. e3 {[%emt 0:01:18]} d6 {[%emt 0:02:15]} 4. Nf3 {[%emt 0:00:16]} g6 {[%emt 0:00:23]} 5. Nc3 {[%emt 0:00:27]} Bg7 {[%emt 0:00:18]} 6. d5 {[%emt 0:03:24]} Bg4 {[%emt 0:04:32]} 7. e4 {[%emt 0:02:32]} Nbd7 {[%emt 0:00:23]} 8. Be2 {[%emt 0:00:03]} a6 {[%emt 0:02:52]} 9. a4 {[%emt 0:05:22]} O-O {[%emt 0:02:12]} 10. O-O {[%emt 0:00:07]} Bxf3 {[%emt 0:04:09]} 11. Bxf3 {[%emt 0:00:05]} b5 {[%emt 0:01:19]} 12. cxb5 {[%emt 0:01:59]} axb5 {[%emt 0:00:14]} 13. Nxb5 {[%emt 0:00:10]} Ne5 {[%emt 0:01:19]} 14. Qe2 {[%emt 0:02:05]} Qa5 {[%emt 0:01:36]} 15. Bd2 {[%emt 0:02:08]} Nxf3+ {[%emt 0:00:38]} 16. gxf3 {[%emt 0:00:01]} Qa6 {[%emt 0:02:47]} 17. Qe3 {[%emt 0:01:31]} Rfc8 {[%emt 0:01:17]} 18. Bc3 {[%emt 0:01:42]} Nd7 {[%emt 0:03:47]} 19. Bxg7 {[%emt 0:02:39]} Kxg7 {[%emt 0:00:03]} 20. f4 {[%emt 0:02:21]} Nb6 {[%emt 0:02:09]} 21. f5 {[%emt 0:01:11]} Nxa4 {[%emt 0:03:05]} 22. Nc3 {[%emt 0:00:03]} Qc4 {[%emt 0:00:28]} 23. Nxa4 {[%emt 0:00:29]} Rxa4 {[%emt 0:01:23]} 24. b3 {[%emt 0:00:13]} Qxe4 {[%emt 0:00:05]} 25. Rxa4 {[%emt 0:00:41]} Qxf5 {[%emt 0:00:07]} 26. Qe4 {[%emt 0:08:53]} Qf6 {[%emt 0:00:03]} 27. f4 {[%emt 0:01:29]} Rb8 {[%emt 0:00:35]} 28. Rf3 {[%emt 0:01:00]} Qb2 {[%emt 0:01:03]} 29. Qd3 {[%emt 0:01:36]} f6 {[%emt 0:00:40]} 30. Ra7 {[%emt 0:00:11]} Kf7 {[%emt 0:00:15]} 31. Qe3 {[%emt 0:00:06]} Qb1+ {[%emt 0:00:18]} 32. Rf1 {[%emt 0:00:29]} 1-0

[Event "Kragero Resort B 2020"]
[Site "Kragero"]
[Date "2020.02.21"]
[Round "6.7"]
[White "Rynning, Rune Kleiven"]
[Black "Sejersted, Adrian"]
[Result "1-0"]
[ECO "B01"]
[WhiteElo "1625"]
[BlackElo "1788"]
[Annotator "NA RC"]
[PlyCount "109"]
[EventDate "2020.02.19"]
[EventType "swiss"]
[EventCountry "NOR"]
[SourceTitle "playchess.com"]
[Source "ChessBase"]
[SourceQuality "1"]
[TimeControl "5400+30"]

1. e4 {[%emt 0:00:00]} d5 {[%emt 0:00:17]} 2. exd5 {[%emt 0:00:00]} Qxd5 {[%emt 0:00:03]} 3. Nc3 {[%emt 0:00:00]} Qd8 {[%emt 0:00:14]} 4. Bc4 {[%emt 0:00:02]} Nf6 {[%emt 0:00:29]} 5. Nf3 {[%emt 0:00:30]} a6 {[%emt 0:00:17]} 6. a4 {[%emt 0:00:08]} Nc6 {[%emt 0:00:07]} 7. O-O {[%emt 0:00:14]} e6 {[%emt 0:00:08]} 8. d4 {[%emt 0:00:13]} Be7 {[%emt 0:00:19]} 9. Re1 {[%emt 0:00:09]} b6 {[%emt 0:01:01]} 10. h3 {[%emt 0:02:26]} Bb7 {[%emt 0:00:23]} 11. Bf4 {[%emt 0:00:19]} O-O {[%emt 0:00:22]} 12. Qd2 {[%emt 0:10:41]} Na5 {[%emt 0:01:12]} 13. Be2 {[%emt 0:00:42]} Bb4 {[%emt 0:01:05]} 14. Bg5 {[%emt 0:04:09]} h6 {[%emt 0:01:36]} 15. Bh4 {[%emt 0:00:16]} c5 {[%emt 0:05:58]} 16. Qf4 {[%emt 0:08:13]} Bxc3 {[%emt 0:05:15]} 17. bxc3 {[%emt 0:08:04]} Rc8 {[%emt 0:04:02]} 18. Ne5 {[%emt 0:12:54]} Nd5 {[%emt 0:12:48]} 19. Bxd8 {[%emt 0:01:27]} Nxf4 {[%emt 0:00:19]} 20. Bxb6 {[%emt 0:00:49]} Nxe2+ {[%emt 0:00:13]} 21. Rxe2 {[%emt 0:00:15]} Nc6 {[%emt 0:10:44]} 22. Bxc5 {[%emt 0:00:12]} Rfd8 {[%emt 0:01:04]} 23. Nxc6 {[%emt 0:02:00]} Bxc6 {[%emt 0:01:02]} 24. a5 {[%emt 0:00:56]} Rb8 {[%emt 0:01:16]} 25. Bb4 {[%emt 0:00:24]} Rd5 {[%emt 0:00:55]} 26. Rae1 {[%emt 0:03:13]} Rg5 {[%emt 0:00:52]} 27. g3 {[%emt 0:04:28]} Bd5 {[%emt 0:00:07]} 28. Re5 {[%emt 0:00:06]} Rg6 {[%emt 0:01:13]} 29. Rb1 {[%emt 0:05:43]} f5 {[%emt 0:05:07]} 30. Kh2 {[%emt 0:00:41]} h5 {[%emt 0:02:45]} 31. h4 {[%emt 0:03:57]} Rb7 {[%emt 0:00:00]} 32. f4 {[%emt 0:04:31]} Rg4 {[%emt 0:00:00]} 33. Ree1 {[%emt 0:00:27]} g5 {[%emt 0:01:21]} 34. fxg5 {[%emt 0:07:25]} f4 {[%emt 0:00:30]} 35. Bd6 {[%emt 0:00:54]} Rxb1 {[%emt 0:06:17]} 36. Rxb1 {[%emt 0:00:11]} Rxg3 {[%emt 0:00:16]} 37. Bxf4 {[%emt 0:06:41]} Rxc3 {[%emt 0:05:13]} 38. Rc1 {[%emt 0:03:29]} Rc4 {[%emt 0:02:02]} 39. c3 {[%emt 0:00:31]} Ra4 {[%emt 0:00:20]} 40. Bc7 {[%emt 0:02:45]} Kg7 {[%emt 0:01:09]} 41. Kg3 {[%emt 0:01:03]} Ra2 {[%emt 0:02:02]} 42. c4 {[%emt 0:02:02]} Be4 {[%emt 0:04:55]} 43. c5 {[%emt 0:01:18]} Bc6 {[%emt 0:04:25]} 44. Rf1 {[%emt 0:03:29]} Rg2+ {[%emt 0:02:33]} 45. Kf4 {[%emt 0:01:35]} Re2 {[%emt 0:00:15]} 46. Be5+ {[%emt 0:00:53]} Kg8 {[%emt 0:01:06]} 47. Bf6 {[%emt 0:01:10]} Re4+ {[%emt 0:00:58]} 48. Kg3 {[%emt 0:00:12]} Rg4+ {[%emt 0:00:33]} 49. Kf2 {[%emt 0:00:52]} Rxh4 {[%emt 0:01:13]} 50. g6 {[%emt 0:00:43]} Rg4 {[%emt 0:03:50]} 51. g7 {[%emt 0:00:24]} h4 {[%emt 0:00:24]} 52. Be5 {[%emt 0:00:48]} Rg2+ {[%emt 0:01:34]} 53. Ke3 {[%emt 0:00:34]} h3 {[%emt 0:05:29]} 54. Rf8+ {[%emt 0:00:13]} Kh7 {[%emt 0:00:08]} 55. Rh8+ {[%emt 0:00:13]} 1-0

[Event "Kragero Resort B 2020"]
[Site "Kragero"]
[Date "2020.02.21"]
[Round "6.8"]
[White "Olsen, William Alexander"]
[Black "Shehzad, Alisha"]
[Result "1/2-1/2"]
[ECO "B23"]
[WhiteElo "1862"]
[BlackElo "1705"]
[Annotator "NA"]
[PlyCount "108"]
[EventDate "2020.02.19"]
[EventType "swiss"]
[EventCountry "NOR"]
[SourceTitle "playchess.com"]
[Source "ChessBase"]
[SourceQuality "1"]
[TimeControl "5400+30"]

1. e4 {[%emt 0:00:00]} c5 {[%emt 0:00:00]} 2. Nc3 {[%emt 0:00:00]} Nc6 {[%emt 0:00:00]} 3. f4 {[%emt 0:00:00]} g6 {[%emt 0:01:35]} 4. Nf3 {[%emt 0:00:00]} Bg7 {[%emt 0:00:24]} 5. Bb5 {[%emt 0:00:00]} Nd4 {[%emt 0:02:20]} 6. O-O {[%emt 0:00:15]} a6 {[%emt 0:02:04]} 7. Bd3 {[%emt 0:01:45]} e6 {[%emt 0:01:29]} 8. e5 {[%emt 0:01:19]} Nxf3+ {[%emt 0:02:39]} 9. Qxf3 {[%emt 0:00:14]} d5 {[%emt 0:01:22]} 10. a4 {[%emt 0:02:55]} b6 {[%emt 0:03:00]} 11. b3 {[%emt 0:02:52]} Ne7 {[%emt 0:01:48]} 12. Ba3 {[%emt 0:01:29]} Qc7 {[%emt 0:03:11]} 13. Qf2 {[%emt 0:01:49]} Nc6 {[%emt 0:04:54]} 14. Rab1 {[%emt 0:10:56]} Rb8 {[%emt 0:10:12]} 15. a5 {[%emt 0:04:31]} Nxa5 {[%emt 0:04:23]} 16. b4 {[%emt 0:00:05]} Nb7 {[%emt 0:03:25]} 17. bxc5 {[%emt 0:01:10]} Nxc5 {[%emt 0:04:02]} 18. Bxc5 {[%emt 0:01:37]} bxc5 {[%emt 0:00:13]} 19. Rxb8 {[%emt 0:00:37]} Qxb8 {[%emt 0:00:09]} 20. Qxc5 {[%emt 0:00:07]} Bf8 {[%emt 0:03:32]} 21. Qc6+ {[%emt 0:03:06]} Bd7 {[%emt 0:00:25]} 22. Qxa6 {[%emt 0:00:14]} Bc5+ {[%emt 0:00:47]} 23. Kh1 {[%emt 0:00:06]} O-O {[%emt 0:01:35]} 24. Ne2 {[%emt 0:09:27]} Qb2 {[%emt 0:03:36]} 25. Nc3 {[%emt 0:03:37]} Rb8 {[%emt 0:07:39]} 26. g4 {[%emt 0:04:35]} Qb7 {[%emt 0:07:52]} 27. Rb1 {[%emt 0:12:16]} Qa7 {[%emt 0:03:03]} 28. Rxb8+ {[%emt 0:01:32]} Qxb8 {[%emt 0:00:08]} 29. Bb5 {[%emt 0:00:33]} Bc8 {[%emt 0:02:31]} 30. Qc6 {[%emt 0:00:54]} Ba7 {[%emt 0:00:54]} 31. Ne2 {[%emt 0:02:24]} Bb7 {[%emt 0:01:29]} 32. Qd6 {[%emt 0:01:10]} Qxd6 {[%emt 0:01:55]} 33. exd6 {[%emt 0:00:01]} d4+ {[%emt 0:00:32]} 34. Kg1 {[%emt 0:00:02]} d3+ {[%emt 0:00:14]} 35. Kf1 {[%emt 0:00:03]} dxe2+ {[%emt 0:00:16]} 36. Kxe2 {[%emt 0:00:02]} Kf8 {[%emt 0:00:23]} 37. c3 {[%emt 0:01:15]} Bb8 {[%emt 0:00:43]} 38. d7 {[%emt 0:00:02]} Ke7 {[%emt 0:00:12]} 39. Ke3 {[%emt 0:00:27]} g5 {[%emt 0:02:25]} 40. fxg5 {[%emt 0:01:05]} Bxh2 {[%emt 0:00:16]} 41. c4 {[%emt 0:01:14]} Bc7 {[%emt 0:01:38]} 42. d4 {[%emt 0:00:36]} Kd6 {[%emt 0:00:59]} 43. c5+ {[%emt 0:01:08]} Kd5 {[%emt 0:02:08]} 44. Bd3 {[%emt 0:02:09]} e5 {[%emt 0:05:51]} 45. Be4+ {[%emt 0:00:41]} Kc4 {[%emt 0:00:28]} 46. Bxb7 {[%emt 0:00:13]} exd4+ {[%emt 0:00:08]} 47. Ke4 {[%emt 0:00:20]} Kxc5 {[%emt 0:00:54]} 48. Bd5 {[%emt 0:00:11]} Bd8 {[%emt 0:00:57]} 49. Bxf7 {[%emt 0:00:10]} Bxg5 {[%emt 0:00:10]} 50. Bg8 {[%emt 0:00:26]} Kd6 {[%emt 0:01:14]} 51. Bxh7 {[%emt 0:00:11]} Kxd7 {[%emt 0:00:12]} 52. Kxd4 {[%emt 0:00:06]} Ke6 {[%emt 0:00:09]} 53. Ke4 {[%emt 0:00:06]} Kf6 {[%emt 0:00:09]} 54. Bf5 {[%emt 0:00:08]} Bc1 {[%emt 0:00:09]} 1/2-1/2

[Event "Kragero Resort B 2020"]
[Site "Kragero"]
[Date "2020.02.21"]
[Round "6.9"]
[White "Haug, Havard"]
[Black "Hausken, Andreas Skrede"]
[Result "0-1"]
[ECO "B22"]
[WhiteElo "1626"]
[BlackElo "1856"]
[Annotator "NA"]
[PlyCount "148"]
[EventDate "2020.02.19"]
[EventType "swiss"]
[EventCountry "NOR"]
[SourceTitle "playchess.com"]
[Source "ChessBase"]
[SourceQuality "1"]
[TimeControl "5400+30"]

1. e4 {[%emt 0:00:00]} c5 {[%emt 0:00:00]} 2. c3 {[%emt 0:00:00]} Nf6 {[%emt 0:00:00]} 3. e5 {[%emt 0:00:00]} Nd5 {[%emt 0:00:00]} 4. d4 {[%emt 0:00:00]} cxd4 {[%emt 0:00:02]} 5. cxd4 {[%emt 0:00:00]} e6 {[%emt 0:00:11]} 6. Nc3 {[%emt 0:00:00]} Nxc3 {[%emt 0:02:11]} 7. bxc3 {[%emt 0:00:31]} d6 {[%emt 0:00:13]} 8. Nf3 {[%emt 0:00:22]} dxe5 {[%emt 0:00:12]} 9. Nxe5 {[%emt 0:00:06]} Be7 {[%emt 0:01:54]} 10. Bb5+ {[%emt 0:01:06]} Nd7 {[%emt 0:02:21]} 11. Qa4 {[%emt 0:00:17]} f6 {[%emt 0:04:09]} 12. Nd3 {[%emt 0:01:08]} O-O {[%emt 0:05:08]} 13. O-O {[%emt 0:00:36]} a6 {[%emt 0:00:36]} 14. Bc4 {[%emt 0:00:39]} Nb6 {[%emt 0:00:51]} 15. Qb3 {[%emt 0:00:12]} Nxc4 {[%emt 0:00:17]} 16. Qxc4 {[%emt 0:00:08]} Qd5 {[%emt 0:08:16]} 17. Qxd5 {[%emt 0:01:58]} exd5 {[%emt 0:00:08]} 18. Nf4 {[%emt 0:00:20]} Rd8 {[%emt 0:00:52]} 19. Re1 {[%emt 0:00:17]} Kf7 {[%emt 0:00:43]} 20. Bd2 {[%emt 0:01:24]} Bf5 {[%emt 0:09:14]} 21. g3 {[%emt 0:01:58]} Rac8 {[%emt 0:01:24]} 22. Re3 {[%emt 0:00:25]} Rc4 {[%emt 0:06:34]} 23. Rae1 {[%emt 0:00:53]} Ba3 {[%emt 0:01:33]} 24. Ne6 {[%emt 0:02:36]} Rd7 {[%emt 0:01:47]} 25. f3 {[%emt 0:05:21]} Bxe6 {[%emt 0:15:29]} 26. Rxe6 {[%emt 0:01:29]} Bb2 {[%emt 0:00:18]} 27. R6e3 {[%emt 0:00:20]} Ra4 {[%emt 0:00:31]} 28. Bc1 {[%emt 0:02:59]} Bxc1 {[%emt 0:02:23]} 29. Rxc1 {[%emt 0:00:06]} Rxa2 {[%emt 0:00:02]} 30. Rce1 {[%emt 0:03:27]} Ra3 {[%emt 0:00:41]} 31. Kf2 {[%emt 0:02:27]} Rc7 {[%emt 0:01:30]} 32. Re6 {[%emt 0:02:30]} Rcxc3 {[%emt 0:04:16]} 33. Re7+ {[%emt 0:00:56]} Kg6 {[%emt 0:00:05]} 34. Rxb7 {[%emt 0:00:10]} Rxf3+ {[%emt 0:00:10]} 35. Kg2 {[%emt 0:00:08]} Rfe3 {[%emt 0:00:18]} 36. Rxe3 {[%emt 0:00:31]} Rxe3 {[%emt 0:00:07]} 37. Rd7 {[%emt 0:00:12]} a5 {[%emt 0:00:52]} 38. Rxd5 {[%emt 0:00:07]} a4 {[%emt 0:00:07]} 39. Ra5 {[%emt 0:00:50]} a3 {[%emt 0:00:24]} 40. Kh3 {[%emt 0:00:20]} Rd3 {[%emt 0:00:25]} 41. d5 {[%emt 0:00:17]} Kf5 {[%emt 0:00:41]} 42. d6+ {[%emt 0:01:48]} Ke6 {[%emt 0:02:38]} 43. d7 {[%emt 0:00:28]} Kxd7 {[%emt 0:00:22]} 44. Ra7+ {[%emt 0:00:47]} Kc6 {[%emt 0:00:19]} 45. Kg4 {[%emt 0:01:46]} Kb6 {[%emt 0:00:19]} 46. Ra8 {[%emt 0:00:14]} Kb5 {[%emt 0:00:15]} 47. Kf5 {[%emt 0:00:41]} Kb4 {[%emt 0:00:17]} 48. Ke4 {[%emt 0:00:34]} Rd2 {[%emt 0:00:25]} 49. Rb8+ {[%emt 0:00:32]} Kc3 {[%emt 0:00:13]} 50. h4 {[%emt 0:02:57]} a2 {[%emt 0:04:55]} 51. Ra8 {[%emt 0:00:03]} Kb2 {[%emt 0:00:07]} 52. Rb8+ {[%emt 0:00:11]} Ka1 {[%emt 0:00:04]} 53. Kf5 {[%emt 0:00:34]} Rb2 {[%emt 0:00:31]} 54. Rd8 {[%emt 0:00:46]} Kb1 {[%emt 0:00:24]} 55. Ke6 {[%emt 0:00:08]} a1=Q {[%emt 0:00:12]} 56. Rd1+ {[%emt 0:00:05]} Ka2 {[%emt 0:00:07]} 57. Rxa1+ {[%emt 0:00:17]} Kxa1 {[%emt 0:00:04]} 58. Kf7 {[%emt 0:00:02]} Rb4 {[%emt 0:00:20]} 59. Kxg7 {[%emt 0:00:12]} Rg4+ {[%emt 0:00:04]} 60. Kxh7 {[%emt 0:00:41]} Rxg3 {[%emt 0:00:05]} 61. h5 {[%emt 0:00:06]} f5 {[%emt 0:01:02]} 62. h6 {[%emt 0:00:06]} f4 {[%emt 0:00:05]} 63. Kh8 {[%emt 0:00:05]} Rh3 {[%emt 0:00:03]} 64. h7 {[%emt 0:00:17]} f3 {[%emt 0:00:07]} 65. Kg8 {[%emt 0:00:12]} f2 {[%emt 0:00:05]} 66. h8=Q+ {[%emt 0:00:08]} Rxh8+ {[%emt 0:00:06]} 67. Kxh8 {[%emt 0:00:19]} f1=Q {[%emt 0:00:05]} 68. Kh7 {[%emt 0:00:07]} Qg1 {[%emt 0:00:05]} 69. Kh8 {[%emt 0:00:03]} Kb2 {[%emt 0:00:03]} 70. Kh7 {[%emt 0:00:05]} Kc3 {[%emt 0:00:02]} 71. Kh6 {[%emt 0:00:08]} Kd4 {[%emt 0:00:03]} 72. Kh7 {[%emt 0:00:08]} Ke5 {[%emt 0:00:03]} 73. Kh6 {[%emt 0:00:14]} Kf6 {[%emt 0:00:03]} 74. Kh5 {[%emt 0:00:13]} Qg5# {[%emt 0:00:25]} 0-1

[Event "Kragero Resort B 2020"]
[Site "Kragero"]
[Date "2020.02.21"]
[Round "6.10"]
[White "Strand, Amund Pihl"]
[Black "Berg, Thomas"]
[Result "1-0"]
[ECO "A80"]
[WhiteElo "1806"]
[BlackElo "2235"]
[Annotator "ChessBase"]
[PlyCount "67"]
[EventDate "2020.02.19"]
[EventType "swiss"]
[EventCountry "NOR"]
[SourceTitle "playchess.com"]
[Source "ChessBase"]
[SourceQuality "1"]
[TimeControl "5400+30"]

1. d4 {[%emt 0:03:52]} f5 {[%emt 0:00:06]} 2. Nf3 {[%emt 0:00:08]} Nf6 {[%emt 0:00:08]} 3. e3 {[%emt 0:00:00]} g6 {[%emt 0:00:00]} 4. b3 {[%emt 0:00:00]} Bg7 {[%emt 0:00:07]} 5. Bd3 {[%emt 0:00:00]} O-O {[%emt 0:00:16]} 6. Bb2 {[%emt 0:00:00]} b6 {[%emt 0:01:24]} 7. c4 {[%emt 0:00:00]} Bb7 {[%emt 0:00:27]} 8. O-O {[%emt 0:00:00]} e6 {[%emt 0:00:23]} 9. Qe2 {[%emt 0:00:12]} d6 {[%emt 0:06:19]} 10. Nc3 {[%emt 0:01:03]} h6 {[%emt 0:02:52]} 11. Rad1 {[%emt 0:04:32]} d5 {[%emt 0:05:44]} 12. Ne5 {[%emt 0:01:06]} Kh7 {[%emt 0:02:54]} 13. Bb1 {[%emt 0:06:02]} Nbd7 {[%emt 0:02:36]} 14. Nd3 {[%emt 0:01:32]} a5 {[%emt 0:02:32]} 15. f3 {[%emt 0:01:03]} c6 {[%emt 0:06:07]} 16. Nf2 {[%emt 0:03:07]} Qe7 {[%emt 0:03:12]} 17. e4 {[%emt 0:01:55]} Rae8 {[%emt 0:02:51]} 18. Rfe1 {[%emt 0:01:17]} Qf7 {[%emt 0:03:25]} 19. e5 {[%emt 0:02:55]} Nh5 {[%emt 0:04:16]} 20. Qd2 {[%emt 0:10:00]} Qe7 {[%emt 0:08:03]} 21. cxd5 {[%emt 0:03:01]} exd5 {[%emt 0:01:06]} 22. Nh3 {[%emt 0:11:25]} Qe6 {[%emt 0:05:27]} 23. Ba3 {[%emt 0:02:58]} Rg8 {[%emt 0:02:09]} 24. Re2 {[%emt 0:04:52]} Ba6 {[%emt 0:05:00]} 25. Rf2 {[%emt 0:01:01]} Bf8 {[%emt 0:01:39]} 26. Bxf8 {[%emt 0:01:40]} Rexf8 {[%emt 0:00:58]} 27. Nf4 {[%emt 0:00:52]} Nxf4 {[%emt 0:00:15]} 28. Qxf4 {[%emt 0:00:02]} b5 {[%emt 0:05:45]} 29. Bd3 {[%emt 0:01:16]} Bb7 {[%emt 0:01:07]} 30. Qd2 {[%emt 0:02:02]} Kg7 {[%emt 0:01:06]} 31. Ne2 {[%emt 0:01:42]} Ra8 {[%emt 0:00:45]} 32. Nf4 {[%emt 0:01:31]} Qe8 {[%emt 0:02:23]} 33. g4 {[%emt 0:00:33]} Qf8 {[%emt 0:03:47]} 34. Ne6+ {[%emt 0:00:22]} 1-0

[Event "Kragero Resort B 2020"]
[Site "Kragero"]
[Date "2020.02.21"]
[Round "6.11"]
[White "Heitun, Odd Gunnar"]
[Black "Aasen, Joakim"]
[Result "0-1"]
[ECO "D94"]
[WhiteElo "1599"]
[BlackElo "1745"]
[Annotator "NA"]
[PlyCount "76"]
[EventDate "2020.02.19"]
[EventType "swiss"]
[EventCountry "NOR"]
[SourceTitle "playchess.com"]
[Source "ChessBase"]
[SourceQuality "1"]
[TimeControl "5400+30"]

1. d4 {[%emt 0:00:00]} Nf6 {[%emt 0:00:00]} 2. c4 {[%emt 0:00:00]} c5 {[%emt 0:00:00]} 3. e3 {[%emt 0:02:49]} g6 {[%emt 0:00:28]} 4. Nc3 {[%emt 0:00:16]} Bg7 {[%emt 0:00:06]} 5. Nf3 {[%emt 0:00:21]} O-O {[%emt 0:00:08]} 6. Be2 {[%emt 0:00:41]} d5 {[%emt 0:00:45]} 7. dxc5 {[%emt 0:06:40]} Qa5 {[%emt 0:02:02]} 8. cxd5 {[%emt 0:07:51]} Rd8 {[%emt 0:13:13]} 9. Bd2 {[%emt 0:02:44]} Qxc5 {[%emt 0:00:12]} 10. h3 {[%emt 0:02:15]} Nxd5 {[%emt 0:00:39]} 11. Qb3 {[%emt 0:07:09]} Nxc3 {[%emt 0:07:01]} 12. Bxc3 {[%emt 0:01:45]} Be6 {[%emt 0:00:45]} 13. Qc2 {[%emt 0:10:37]} Na6 {[%emt 0:01:32]} 14. Bxa6 {[%emt 0:02:33]} bxa6 {[%emt 0:00:20]} 15. O-O {[%emt 0:00:09]} Rac8 {[%emt 0:01:45]} 16. Rfc1 {[%emt 0:06:12]} Bxc3 {[%emt 0:02:48]} 17. bxc3 {[%emt 0:01:33]} f6 {[%emt 0:01:10]} 18. Nd4 {[%emt 0:04:03]} Bc4 {[%emt 0:01:32]} 19. Rab1 {[%emt 0:02:15]} e5 {[%emt 0:02:48]} 20. Nb3 {[%emt 0:00:06]} Qc7 {[%emt 0:00:27]} 21. Qb2 {[%emt 0:01:33]} Rd7 {[%emt 0:03:08]} 22. g3 {[%emt 0:05:15]} Rcd8 {[%emt 0:00:56]} 23. Qa1 {[%emt 0:00:38]} a5 {[%emt 0:02:21]} 24. a4 {[%emt 0:01:49]} Rd3 {[%emt 0:02:42]} 25. Qa3 {[%emt 0:01:50]} Qc8 {[%emt 0:04:08]} 26. g4 {[%emt 0:04:28]} h5 {[%emt 0:01:30]} 27. Nxa5 {[%emt 0:00:40]} Bd5 {[%emt 0:04:10]} 28. Qb4 {[%emt 0:02:06]} Qd7 {[%emt 0:03:46]} 29. Qb5 {[%emt 0:03:46]} Bf3 {[%emt 0:02:12]} 30. Qxd7 {[%emt 0:01:40]} R8xd7 {[%emt 0:00:01]} 31. gxh5 {[%emt 0:00:31]} gxh5 {[%emt 0:00:27]} 32. Kh2 {[%emt 0:03:51]} h4 {[%emt 0:03:55]} 33. Rg1+ {[%emt 0:00:18]} Kf7 {[%emt 0:00:29]} 34. Rbc1 {[%emt 0:00:56]} Rd2 {[%emt 0:01:04]} 35. Rgf1 {[%emt 0:01:11]} Rd8 {[%emt 0:00:36]} 36. Nc4 {[%emt 0:04:00]} R2d3 {[%emt 0:04:20]} 37. Rc2 {[%emt 0:04:55]} Rg8 {[%emt 0:01:53]} 38. Rg1 {[%emt 0:01:49]} Rxg1 {[%emt 0:00:14]} 0-1